bitfinex-derivatives/quotes_ETHF0:USTF0_20241027
["timestamp","ask_amount","ask_price","bid_price","bid_amount"]
[1730002067860,1.73544574,2485.9,2485.8,3.61058]
[1730002069163,1.73544574,2485.9,2485.8,0.40278]
[1730002070159,0.4294,2485.9,2485.8,0.40278]
[1730002070365,1.73544574,2485.9,2485.8,0.40278]
[1730002071263,1.73544574,2485.9,2485.7,3.2078]
[1730002071468,1.72534574,2485.8,2485.7,3.6106]
[1730002071669,1.72534574,2485.8,2485.7,3.2078]
[1730002072168,1.72534574,2485.8,2485.7,3.6106]
[1730002072370,2.12812574,2485.8,2485.7,3.2078]
[1730002072571,1.72534574,2485.8,2485.7,3.6106]
[1730002072767,2.12812574,2485.8,2485.7,3.2078]
[1730002074669,2.56882574,2485.8,2485.7,3.2078]
[1730002076565,2.56882574,2485.8,2485.6,0.40281]
[1730002076766,2.56882574,2485.8,2485.6,3.61061]
[1730002077072,2.56882574,2485.8,2485.6,0.40281]
[1730002077672,2.56882574,2485.8,2485.6,3.61061]
[1730002078575,2.56882574,2485.8,2485.6,0.40281]
[1730002078773,2.56882574,2485.8,2485.6,3.61061]
[1730002079374,2.56882574,2485.8,2485.6,0.40281]
[1730002079877,2.56882574,2485.8,2485.6,3.61061]
[1730002080075,2.56882574,2485.8,2485.6,0.40281]
[1730002080575,4.0232,2485.7,2485.3,1.04294045]
[1730002080777,1.70889574,2485.4,2485.2,0.40287]
[1730002081073,1.86697,2485.8,2485.1,0.40289]
[1730002081074,2.97550574,2485.3,2485.1,0.40289]
[1730002081376,2.12213574,2485.2,2485.0,0.40291]
[1730002081573,1.30604574,2485.1,2485.0,0.40291]
[1730002082068,1.30604574,2485.1,2485.0,4.42691]
[1730002082263,1.30604574,2485.1,2485.0,0.40291]
[1730002083175,1.30604574,2485.1,2484.9,3.2078]
[1730002083371,1.30604574,2485.0,2484.9,3.61071]
[1730002083778,1.30604574,2485.0,2484.9,7.63471]
[1730002088281,1.30604574,2485.0,2484.9,4.42691]
[1730002088574,1.30604574,2485.0,2484.9,7.63471]
[1730002091682,1.30604574,2485.0,2484.9,4.42691]
[1730002091979,1.30604574,2485.0,2484.9,7.63471]
[1730002092477,1.30604574,2485.0,2484.9,4.42691]
[1730002093179,1.30604574,2485.0,2484.9,7.63471]
[1730002094372,1.30604574,2485.0,2484.9,4.42691]
[1730002094881,1.30604574,2485.0,2484.9,7.63471]
[1730002095472,1.30604574,2485.0,2484.9,4.42691]
[1730002096281,1.30604574,2485.0,2484.9,7.63471]
[1730002097993,1.00675,2486.4,2485.0,1.00729]
[1730002098280,1.2722,2485.5,2485.4,0.40285]
[1730002098483,0.4382,2485.5,2485.4,0.40285]
[1730002099780,3.05029148,2485.5,2485.4,0.40285]
[1730002100979,3.05029148,2485.5,2485.2,3.2078]
[1730002101182,2.14708574,2485.5,2485.3,0.40286]
[1730002101488,1.74424574,2485.5,2485.2,3.2078]
[1730002101675,0.40286,2485.3,2485.1,0.40289]
[1730002101875,0.8895,2485.2,2485.1,0.40289]
[1730002102084,1.3229,2485.2,2485.1,0.40289]
[1730002102382,2.62894574,2485.2,2485.1,0.40289]
[1730002104284,1.3229,2485.2,2485.1,0.40289]
[1730002104577,2.62894574,2485.2,2485.1,0.40289]
[1730002106178,2.62894574,2485.2,2485.1,4.42689]
[1730002107077,2.62894574,2485.2,2485.1,7.63469]
[1730002107681,2.62894574,2485.2,2485.1,4.42689]
[1730002107882,2.62894574,2485.2,2485.1,7.63469]
[1730002109286,2.62894574,2485.2,2485.1,3.61069]
[1730002111991,2.62894574,2485.2,2485.1,0.40289]
[1730002112695,0.40291,2485.0,2484.9,3.2078]
[1730002112892,1.30604574,2485.0,2484.9,0.40293]
[1730002113097,1.3229,2485.2,2485.1,0.4029]
[1730002113297,2.19554574,2485.2,2485.1,0.4029]
[1730002115904,2.59842574,2485.2,2485.1,0.4029]
[1730002116401,0.8895,2485.2,2485.1,0.4029]
[1730002116595,3.02954574,2485.2,2485.1,3.6107]
[1730002117699,2.19554574,2485.2,2485.1,3.6107]
[1730002120799,2.19554574,2485.2,2485.1,0.4029]
[1730002124196,2.60894574,2485.2,2485.1,0.4029]
[1730002129006,3.01182574,2485.2,2485.1,0.4029]
[1730002130598,0.4029,2485.1,2485.0,0.40291]
[1730002130810,1.70894574,2485.1,2485.0,0.40291]
[1730002132912,1.30604574,2485.1,2485.0,0.40291]
[1730002133210,1.30604574,2485.1,2484.7,5.22179507]
[1730002133211,1.3029,2485.2,2485.1,0.4029]
[1730002133412,3.01182574,2485.2,2485.1,0.4029]
[1730002134111,1.70578,2485.2,2485.1,0.4029]
[1730002134305,2.1369,2485.2,2485.1,0.4029]
[1730002134506,3.44294574,2485.2,2485.1,0.4029]
[1730002136111,2.60894574,2485.2,2485.1,0.4029]
[1730002136315,3.2078,2485.8,2485.1,4.024]
[1730002136528,0.834,2485.6,2485.5,0.40283]
[1730002137213,1.662,2485.7,2485.5,0.40283]
[1730002137522,0.834,2485.6,2485.5,0.40283]
[1730002137713,2.14004574,2485.6,2485.5,0.40283]
[1730002139409,1.66201,2485.7,2485.3,3.2078]
[1730002139410,1.2592,2485.7,2485.3,3.2078]
[1730002139608,1.30604574,2485.4,2485.3,3.61066]
[1730002140110,1.30604574,2485.4,2485.3,7.63386]
[1730002141413,1.2592,2485.7,2485.6,0.40282]
[1730002141812,1.30604574,2485.7,2485.6,7.63382]
[1730002142215,2.59594574,2486.1,2485.7,0.4028]
[1730002142216,0.4216,2485.8,2485.7,0.4028]
[1730002142416,1.72764574,2485.8,2485.7,0.4028]
[1730002148412,2.13042574,2485.8,2485.6,3.61061]
[1730002148618,2.15994574,2485.7,2485.6,0.40281]
[1730002148821,2.15994574,2485.7,2485.3,3.2078]
[1730002149125,0.40282,2485.6,2485.4,0.40284]
[1730002149623,0.4189,2485.5,2485.4,0.40284]
[1730002150018,1.72494574,2485.5,2485.4,0.40284]
[1730002150923,2.12778574,2485.5,2485.3,0.40286]
[1730002151120,1.30604574,2485.4,2485.3,0.40286]
[1730002151915,2.61209148,2485.4,2485.3,0.40286]
[1730002154027,2.61209148,2485.4,2485.2,3.2078]
[1730002154226,2.16274574,2485.3,2485.2,3.61067]
[1730002154925,2.16274574,2485.3,2485.2,0.40287]
[1730002155631,2.56560574,2485.3,2485.1,0.40288]
[1730002155832,1.72404574,2485.2,2485.1,0.40288]
[1730002159137,1.72404574,2485.2,2485.1,3.61068]
[1730002159641,1.72404574,2485.2,2485.1,0.40288]
[1730002165642,1.72404574,2485.2,2485.1,3.61068]
[1730002166144,1.72404574,2485.2,2485.1,0.40288]
[1730002166438,1.72404574,2485.2,2485.1,3.61068]
[1730002168043,1.72404574,2485.2,2485.1,0.40288]
[1730002168435,1.72404574,2485.2,2485.1,3.61068]
[1730002169444,1.72404574,2485.2,2485.1,0.40288]
[1730002170237,1.72404574,2485.2,2485.1,3.61068]
[1730002170948,2.12692574,2485.2,2485.1,3.61068]
[1730002171136,1.72404574,2485.2,2485.1,3.61068]
[1730002171542,1.72404574,2485.2,2485.1,0.40288]
[1730002176441,1.72404574,2485.2,2485.1,3.61068]
[1730002177553,1.72404574,2485.2,2485.1,0.40288]
[1730002178646,1.72404574,2485.2,2485.1,3.61068]
[1730002179343,1.72404574,2485.2,2485.1,0.40288]
[1730002179751,1.72404574,2485.2,2485.1,3.61068]
[1730002181240,1.72404574,2485.2,2485.1,3.2078]
[1730002181451,2.12692574,2485.2,2485.0,0.40291]
[1730002181644,1.30604574,2485.1,2485.0,0.40291]
[1730002183851,1.30604574,2485.1,2485.0,3.61071]
[1730002186749,1.30604574,2485.1,2485.0,0.40291]
[1730002187158,1.30604574,2485.1,2485.0,3.61071]
[1730002190148,1.30604574,2485.1,2485.0,0.40291]
[1730002215964,0.418,2485.2,2485.1,0.4029]
[1730002216166,1.72404574,2485.2,2485.1,0.4029]
[1730002237172,0.8567,2485.3,2485.2,0.40288]
[1730002237475,0.4442,2485.5,2485.4,0.40285]
[1730002237674,1.75024574,2485.5,2485.4,1.45676345]
[1730002238183,1.75024574,2485.5,2485.4,0.40285]
[1730002238978,1.30604574,2485.5,2485.4,0.40285]
[1730002240772,1.71344574,2485.7,2485.6,0.40282]
[1730002247278,1.70886574,2485.6,2485.5,3.2078]
[1730002248194,1.70886574,2485.6,2485.0,1.30604574]
[1730002248195,1.70886574,2485.6,2485.4,0.40285]
[1730002248383,1.30604574,2485.5,2485.4,0.40285]
[1730002250588,1.70887574,2485.5,2485.4,0.40285]
[1730002250787,1.70887574,2485.5,2485.3,0.40285]
[1730002251093,2.59554574,2485.4,2485.3,0.40285]
[1730002256299,0.832,2485.5,2485.0,4.0152]
[1730002256492,0.832,2485.5,2485.4,0.40285]
[1730002256693,2.13804574,2485.5,2485.4,0.40285]
[1730002257901,0.832,2485.5,2485.4,0.40285]
[1730002258093,1.30604574,2485.5,2485.4,0.80665]
[1730002260091,1.30604574,2485.5,2485.4,0.40285]
[1730002267405,1.70887574,2485.5,2485.4,0.40285]
[1730002267700,1.30604574,2485.5,2485.2,3.2078]
[1730002268007,1.70891574,2485.3,2485.1,0.40289]
[1730002268200,2.14744574,2485.2,2485.1,0.40289]
[1730002268800,2.14744574,2485.2,2484.8,3.2078]
[1730002269005,1.30604574,2484.9,2484.8,3.61074]
[1730002269205,1.30604574,2484.9,2484.8,4.91678574]
[1730002269505,1.30604574,2484.9,2484.8,8.94078574]
[1730002270007,1.30604574,2484.9,2484.8,4.91678574]
[1730002271404,1.30604574,2484.9,2484.8,8.94078574]
[1730002271710,1.30604574,2484.9,2484.8,4.91678574]
[1730002272200,1.30604574,2484.9,2484.8,1.70898574]
[1730002272406,1.30604574,2484.9,2484.8,4.91678574]
[1730002272806,1.30604574,2484.9,2484.8,8.94078574]
[1730002273102,1.30604574,2484.9,2484.8,4.91678574]
[1730002273803,1.30604574,2484.9,2484.8,8.94078574]
[1730002274205,1.30604574,2484.9,2484.8,4.91678574]
[1730002274508,1.30604574,2484.9,2484.8,1.70898574]
[1730002276503,1.30604574,2484.9,2484.8,0.40294]
[1730002276702,1.30604574,2484.9,2484.8,1.70898574]
[1730002285013,1.75424574,2485.1,2485.0,0.40291]
[1730002285306,1.75424574,2485.1,2485.0,4.91675574]
[1730002286101,1.75424574,2485.1,2485.0,3.61071]
[1730002293714,1.75424574,2485.1,2485.0,0.40291]
[1730002298916,1.75424574,2485.1,2484.9,3.2078]
[1730002299103,1.30604574,2485.0,2484.9,0.40293]
[1730002306910,0.40294,2484.9,2484.5,3.2078]
[1730002307114,0.40294,2484.9,2484.5,3.61079]
[1730002307115,1.30604574,2484.6,2484.5,3.61079]
[1730002307616,3.01507148,2484.6,2484.5,3.2078]
[1730002308416,3.01507148,2484.6,2484.2,3.2078]
[1730002308417,2.61209148,2484.6,2484.2,3.2078]
[1730002308621,0.8513,2484.5,2484.3,0.40302]
[1730002308823,0.8874,2484.4,2484.3,0.40302]
[1730002309122,2.19344574,2484.4,2484.3,0.40302]
[1730002309519,2.19344574,2484.4,2484.3,0.40303]
[1730002333944,2.19344574,2484.4,2484.0,0.40306]
[1730002333945,6.21824574,2484.4,2484.0,0.40306]
[1730002334146,1.70911574,2484.1,2483.9,0.40308]
[1730002334335,2.59734574,2484.0,2483.9,0.40308]
[1730002337045,0.8426,2484.0,2483.9,0.40308]
[1730002337242,3.2078,2484.6,2484.5,0.40298]
[1730002337437,6.65189148,2484.6,2484.5,0.40298]
[1730002337641,11.10379148,2484.6,2484.5,0.40298]
[1730002338339,11.10379148,2484.6,2484.1,0.8079]
[1730002338641,6.17592574,2484.6,2484.4,0.403]
[1730002339641,2.96812574,2484.6,2484.4,0.403]
[1730002339844,1.30604574,2484.5,2484.4,0.403]
[1730002347150,0.832,2485.4,2484.4,9.54616574]
[1730002347349,0.832,2485.4,2484.8,3.2078]
[1730002347350,1.30604574,2485.0,2484.8,3.2078]
[1730002347550,1.30604574,2485.0,2484.9,0.80673]
[1730002348949,1.30604574,2485.0,2484.9,4.01453]
[1730002349349,1.30604574,2485.0,2484.9,0.80673]
[1730002349656,1.30604574,2485.0,2484.9,4.01453]
[1730002352552,1.30604574,2485.0,2484.9,0.80673]
[1730002352760,1.30604574,2485.0,2484.9,4.01453]
[1730002354359,1.30604574,2485.0,2484.9,0.80673]
[1730002354554,1.30604574,2485.0,2484.9,4.01453]
[1730002354759,1.30604574,2485.0,2484.9,0.80673]
[1730002355056,1.30604574,2485.0,2484.9,4.01453]
[1730002356052,1.30604574,2485.0,2484.9,0.80673]
[1730002356253,1.30604574,2485.0,2484.9,4.01453]
[1730002356656,1.30604574,2485.0,2484.9,0.80673]
[1730002356855,1.30604574,2485.0,2484.9,4.01453]
[1730002359461,1.30604574,2485.0,2484.9,0.80673]
[1730002359667,1.30604574,2485.0,2484.9,4.01453]
[1730002359865,1.30604574,2485.0,2484.9,3.61073]
[1730002361161,1.30604574,2485.0,2484.9,0.40293]
[1730002361477,1.30604574,2485.0,2484.9,3.61073]
[1730002361766,1.30604574,2485.0,2484.9,0.40293]
[1730002362270,1.30604574,2485.0,2484.9,3.61073]
[1730002363073,1.30604574,2485.0,2484.9,0.40293]
[1730002363262,1.30604574,2485.0,2484.9,3.61073]
[1730002363967,1.30604574,2485.0,2484.9,0.40293]
[1730002364159,1.30604574,2485.0,2484.9,3.61073]
[1730002364560,1.30604574,2485.0,2484.9,0.40293]
[1730002365960,1.30604574,2485.0,2484.9,3.61073]
[1730002367665,2.20224574,2485.0,2484.9,0.40293]
[1730002368275,2.20224574,2485.0,2484.9,3.61073]
[1730002369666,2.20224574,2485.0,2484.9,0.40293]
[1730002369867,2.20224574,2485.0,2484.9,3.61073]
[1730002370869,2.20224574,2485.0,2484.9,0.40293]
[1730002371268,2.20224574,2485.0,2484.9,3.61073]
[1730002373162,2.20224574,2485.0,2484.9,0.40293]
[1730002373472,2.20224574,2485.0,2484.9,3.61073]
[1730002373664,2.20224574,2485.0,2484.9,0.40293]
[1730002373860,2.20224574,2485.0,2484.9,3.61073]
[1730002374270,2.20224574,2485.0,2484.9,0.40293]
[1730002374477,2.20224574,2485.0,2484.9,3.61073]
[1730002375777,2.20224574,2485.0,2484.9,0.40293]
[1730002376074,2.20224574,2485.0,2484.9,3.61073]
[1730002379578,2.20224574,2485.0,2484.9,0.40293]
[1730002379785,2.20224574,2485.0,2484.9,3.61073]
[1730002381480,2.20224574,2485.0,2484.9,0.40293]
[1730002381871,2.20224574,2485.0,2484.9,3.61073]
[1730002383285,2.20224574,2485.0,2484.9,0.40293]
[1730002383478,2.20224574,2485.0,2484.9,3.61073]
[1730002385480,2.20224574,2485.0,2484.9,0.40293]
[1730002385685,2.20224574,2485.0,2484.9,3.61073]
[1730002387077,2.20224574,2485.0,2484.9,0.40293]
[1730002387280,2.20224574,2485.0,2484.9,3.61073]
[1730002388184,2.20224574,2485.0,2484.9,0.40293]
[1730002388384,2.20224574,2485.0,2484.9,3.61073]
[1730002388581,2.20224574,2485.0,2484.9,0.40293]
[1730002389087,2.20224574,2485.0,2484.9,3.61073]
[1730002389284,0.40293,2484.9,2484.6,3.2078]
[1730002389581,0.8962,2485.0,2484.6,3.2078]
[1730002389883,0.40296,2484.7,2484.5,0.40299]
[1730002390185,0.8587,2484.6,2484.5,0.40299]
[1730002390888,2.16474574,2484.6,2484.5,0.40299]
[1730002393388,7.49559148,2484.6,2484.5,0.40299]
[1730002395092,6.18954574,2484.6,2484.5,0.40299]
[1730002395889,0.832,2485.2,2484.5,5.33084574]
[1730002396090,2.98794574,2485.1,2485.0,0.40291]
[1730002396498,2.98794574,2485.1,2484.8,1.30604574]
[1730002396698,2.98794574,2485.1,2484.9,0.40292]
[1730002396998,1.30604574,2485.0,2484.9,0.40292]
[1730002401599,1.70895574,2485.0,2484.9,0.40292]
[1730002402507,1.70895574,2485.0,2484.8,0.40294]
[1730002402806,1.30604574,2485.0,2484.7,4.51384574]
[1730002403109,1.30604574,2485.0,2484.9,0.40293]
[1730002403798,1.30604574,2485.0,2484.7,4.51384574]
[1730002404000,1.30604574,2485.0,2484.9,0.40293]
[1730002405207,1.70895574,2485.0,2484.9,0.40293]
[1730002405708,1.30604574,2485.0,2484.9,0.40293]
[1730002406204,1.70895574,2485.0,2484.7,4.51384574]
[1730002406402,1.30604574,2484.9,2484.8,0.40294]
[1730002407596,1.70897574,2484.9,2484.8,0.40294]
[1730002407900,1.30604574,2484.9,2484.8,0.40294]
[1730002408207,2.111,2485.1,2484.7,4.51384574]
[1730002408396,2.51391,2485.1,2484.9,0.40292]
[1730002408599,1.30604574,2485.0,2484.9,0.40292]
[1730002408807,1.30604574,2485.0,2484.7,4.91724574]
[1730002409007,1.30604574,2484.9,2484.8,0.40293]
[1730002416323,1.30604574,2485.0,2484.9,0.40292]
[1730002416516,1.70896574,2485.0,2484.8,1.30604574]
[1730002416914,1.70896574,2485.0,2484.8,1.70897574]
[1730002418119,1.70896574,2485.0,2484.8,0.40293]
[1730002420624,1.70897574,2484.9,2484.8,0.40294]
[1730002420922,1.30604574,2484.9,2484.8,0.40294]
[1730002427024,1.70896574,2485.0,2484.8,0.40294]
[1730002428123,1.70896574,2485.0,2484.7,1.30604574]
[1730002428124,1.30604574,2485.0,2484.7,1.30604574]
[1730002428321,0.40293,2484.9,2484.7,1.70899574]
[1730002428824,0.4067,2484.8,2484.7,1.70899574]
[1730002432730,0.4067,2484.8,2484.7,0.40295]
[1730002433035,0.4067,2484.8,2484.7,1.70899574]
[1730002447141,2.54795574,2485.1,2484.7,1.30604574]
[1730002447337,0.4102,2485.0,2484.8,1.70898574]
[1730002449551,0.81312,2485.0,2484.8,0.40294]
[1730002451048,0.4102,2485.0,2484.9,0.40293]
[1730002451442,0.81311,2485.0,2484.8,0.40294]
[1730002452443,0.4102,2485.0,2484.9,0.40293]
[1730002453152,0.4102,2485.0,2484.7,1.30604574]
[1730002453350,0.81311,2485.0,2484.8,0.40293]
[1730002454648,0.4102,2485.0,2484.7,1.30604574]
[1730002454953,0.4102,2485.0,2484.9,0.40293]
[1730002455454,0.81312,2485.0,2484.8,1.70898574]
[1730002456550,0.4102,2485.0,2484.9,0.40293]
[1730002456757,0.81312,2485.0,2484.8,1.70898574]
[1730002458151,0.4102,2485.0,2484.9,0.40293]
[1730002458853,0.4102,2485.0,2484.8,1.30604574]
[1730002458854,0.81312,2485.0,2484.8,1.70898574]
[1730002461353,0.4102,2485.0,2484.8,1.30604574]
[1730002461557,0.839,2485.1,2485.0,0.40291]
[1730002462057,0.839,2485.1,2485.0,1.70895574]
[1730002463654,0.839,2485.1,2485.0,4.91675574]
[1730002464654,0.839,2485.1,2485.0,1.70895574]
[1730002464858,0.839,2485.1,2485.0,4.91675574]
[1730002468859,0.4448,2485.4,2485.2,0.40287]
[1730002469065,0.8554,2485.3,2485.2,0.40287]
[1730002469264,0.4448,2485.4,2485.3,0.40286]
[1730002469457,1.3002,2485.4,2485.3,0.40286]
[1730002471256,1.3002,2485.4,2485.3,1.70890574]
[1730002474263,1.3002,2485.4,2485.3,3.01495148]
[1730002474468,1.2537,2485.7,2485.6,0.40282]
[1730002474770,1.2537,2485.7,2485.6,1.70886574]
[1730002475564,1.2537,2485.7,2485.6,4.91666574]
[1730002478669,1.2537,2485.7,2485.6,1.70886574]
[1730002478866,1.2537,2485.7,2485.6,4.91666574]
[1730002479373,1.2537,2485.7,2485.6,1.70886574]
[1730002479563,1.2537,2485.7,2485.6,4.91666574]
[1730002480366,1.2537,2485.7,2485.6,3.61062]
[1730002480568,1.2537,2485.7,2485.6,1.70886574]
[1730002480864,1.2537,2485.7,2485.2,3.2078]
[1730002480865,6.58294574,2485.7,2485.2,3.2078]
[1730002481070,6.58294574,2485.7,2485.4,1.70888574]
[1730002481071,1.30604574,2485.6,2485.4,1.70888574]
[1730002481369,1.30604574,2485.6,2485.4,1.30604574]
[1730002481566,5.73208574,2485.5,2485.3,0.40286]
[1730002481863,1.70888574,2485.5,2485.3,1.70890574]
[1730002482160,5.73208574,2485.5,2485.3,1.70890574]
[1730002482368,5.32924574,2485.5,2485.4,0.40285]
[1730002482567,4.42605,2485.4,2485.2,0.40287]
[1730002482768,4.42605,2485.4,2485.2,1.70891574]
[1730002482769,1.70889574,2485.4,2485.2,1.70891574]
[1730002482962,0.4249,2485.3,2485.2,1.70891574]
[1730002483363,5.3149,2485.3,2485.2,1.70891574]
[1730002484565,3.2078,2485.7,2485.2,6.63609148]
[1730002484764,0.4218,2485.9,2485.6,1.30604574]
[1730002484965,0.4218,2485.9,2485.8,1.70882574]
[1730002505580,0.8665,2486.0,2485.8,1.30604574]
[1730002505783,0.8665,2486.0,2485.9,1.70881574]
[1730002507384,3.2078,2486.6,2485.9,6.63449148]
[1730002507684,0.4476,2486.5,2486.4,0.40269]
[1730002508787,0.4476,2486.5,2486.4,1.70873574]
[1730002509285,0.8489,2486.7,2486.6,0.40265]
[1730002509482,0.8489,2486.7,2486.6,1.70869574]
[1730002511483,3.2078,2487.3,2487.1,0.40257]
[1730002511689,5.32594,2487.3,2487.2,1.30604574]
[1730002511985,5.29494,2487.3,2487.2,1.30604574]
[1730002512294,6.13894,2487.3,2487.2,1.30604574]
[1730002513188,4.8924,2487.3,2487.2,1.30604574]
[1730002513489,0.8716,2487.3,2487.2,1.70860574]
[1730002513679,0.8716,2487.3,2487.2,1.30604574]
[1730002515084,0.8716,2487.3,2487.2,1.70860574]
[1730002515287,0.8716,2487.3,2487.2,1.30604574]
[1730002518698,9.40624574,2487.3,2486.5,3.2078]
[1730002518891,0.4026,2487.0,2486.9,1.30604574]
[1730002520395,0.4026,2487.0,2486.5,3.2078]
[1730002520396,4.0794,2487.3,2486.5,6.43939137]
[1730002520599,0.40263,2486.8,2486.5,6.03673137]
[1730002520796,0.8587,2486.7,2486.5,6.43940137]
[1730002521598,0.40265,2486.6,2486.5,6.03673137]
[1730002521897,1.26135,2486.7,2486.5,6.03673137]
[1730002522198,1.26135,2486.7,2486.5,6.43940137]
[1730002522693,0.40265,2486.6,2486.5,6.03673137]
[1730002523290,0.40267,2486.5,2486.3,3.63383137]
[1730002523598,0.40267,2486.5,2486.3,3.23163137]
[1730002523800,0.40269,2486.4,2486.3,2.82893137]
[1730002524001,0.84659,2486.4,2486.3,2.82893137]
[1730002525295,0.4439,2486.4,2486.3,2.82893137]
[1730002525696,0.84659,2486.4,2486.3,2.82893137]
[1730002527501,0.4027,2486.3,2486.2,3.2078]
[1730002528003,0.4439,2486.4,2486.2,3.2078]
[1730002528196,0.4439,2486.4,2486.2,3.61051]
[1730002528901,0.4439,2486.4,2486.1,2.82893137]
[1730002528902,0.8466,2486.4,2486.1,2.82893137]
[1730002529099,0.8466,2486.4,2486.2,0.40272]
[1730002529501,0.4439,2486.4,2486.1,2.82893137]
[1730002529699,0.4027,2486.3,2486.1,3.23166137]
[1730002529899,0.4439,2486.4,2486.1,3.23166137]
[1730002529900,0.4439,2486.4,2486.1,2.82893137]
[1730002530099,0.84659,2486.4,2486.2,0.40271]
[1730002530708,0.84659,2486.4,2486.1,2.82893137]
[1730002530709,0.4027,2486.3,2486.1,3.23166137]
[1730002531400,0.4027,2486.3,2486.1,6.43946137]
[1730002531801,0.40272,2486.2,2486.1,6.03673137]
[1730002532001,0.83662,2486.2,2486.1,6.03673137]
[1730002533010,0.4339,2486.2,2486.1,6.43946137]
[1730002536712,0.4339,2486.2,2486.1,3.61053]
[1730002538412,0.83662,2486.2,2486.1,3.61053]
[1730002538608,0.4339,2486.2,2486.1,3.61053]
[1730002539206,0.83662,2486.2,2486.1,3.2078]
[1730002539610,0.83662,2486.2,2486.1,3.61053]
[1730002539815,0.4339,2486.2,2486.1,0.40273]
[1730002540013,0.4339,2486.2,2486.1,3.61053]
[1730002540315,0.83662,2486.2,2486.1,3.2078]
[1730002540907,0.40275,2486.0,2485.8,3.2078]
[1730002541109,0.40277,2485.9,2485.8,3.2078]
[1730002541308,1.26457,2485.9,2485.8,3.2078]
[1730002542208,0.8618,2485.9,2485.8,3.61058]
[1730002542411,1.26457,2485.9,2485.8,4.51391078]
[1730002543217,1.26457,2485.9,2485.8,4.91669078]
[1730002543610,1.26457,2485.9,2485.8,1.70889078]
[1730002543811,1.26457,2485.9,2485.8,4.51391078]
[1730002544419,1.26457,2485.9,2485.8,3.2078]
[1730002544613,1.26457,2485.9,2485.8,1.30611078]
[1730002548920,1.26457,2485.9,2485.6,3.61061]
[1730002548921,0.8618,2485.9,2485.6,3.61061]
[1730002549225,0.8618,2485.9,2485.6,3.2078]
[1730002549226,1.70891078,2485.7,2485.6,3.2078]
[1730002549728,5.73211078,2485.7,2485.6,3.2078]
[1730002550319,4.426,2485.7,2485.6,4.51391078]
[1730002550825,4.426,2485.7,2485.6,1.30611078]
[1730002551531,4.21467,2486.1,2485.6,1.30611078]
[1730002551532,3.2078,2486.1,2485.7,0.4028]
[1730002551717,0.40273,2486.2,2486.1,0.40273]
[1730002551718,0.8552,2486.2,2486.1,0.40273]
[1730002551922,0.4078,2486.2,2486.1,1.70884078]
[1730002554320,0.4078,2486.2,2486.1,0.40273]
[1730002558130,0.4078,2486.2,2486.0,3.2078]
[1730002558333,0.81052,2486.2,2486.0,3.61054]
[1730002558533,0.4078,2486.2,2486.0,3.61054]
[1730002559424,0.4078,2486.2,2486.0,3.2078]
[1730002559630,0.81053,2486.2,2486.0,3.2078]
[1730002559933,0.4219,2486.1,2486.0,3.61055]
[1730002561334,0.82463,2486.1,2486.0,3.2078]
[1730002561833,0.82463,2486.1,2486.0,3.61055]
[1730002562129,0.82463,2486.1,2486.0,3.2078]
[1730002562130,0.4219,2486.1,2486.0,3.2078]
[1730002562327,0.4219,2486.1,2486.0,3.61055]
[1730002563931,0.82463,2486.1,2486.0,3.61055]
[1730002566134,0.82463,2486.1,2486.0,3.2078]
[1730002566329,0.82463,2486.1,2486.0,3.61055]
[1730002567434,0.82463,2486.1,2486.0,0.40275]
[1730002567833,0.82463,2486.1,2486.0,3.61055]
[1730002568033,0.4219,2486.1,2486.0,3.61055]
[1730002568334,0.4219,2486.1,2486.0,3.2078]
[1730002568531,0.82463,2486.1,2486.0,3.2078]
[1730002571733,0.40276,2486.0,2485.6,3.2078]
[1730002572026,0.40277,2485.9,2485.7,0.4028]
[1730002572226,0.4158,2485.8,2485.7,0.4028]
[1730002574237,0.8186,2485.8,2485.6,3.2078]
[1730002574441,0.4318,2485.7,2485.6,3.61061]
[1730002576036,0.4318,2485.7,2485.6,0.40281]
[1730002576243,0.4318,2485.7,2485.6,4.91672561]
[1730002576929,0.4158,2485.8,2485.7,0.4028]
[1730002577131,0.4367,2486.0,2485.7,1.30611561]
[1730002577331,0.4367,2486.0,2485.9,1.70888561]
[1730002577735,1.74281561,2486.0,2485.6,3.2078]
[1730002577935,1.70889561,2485.9,2485.7,1.30611561]
[1730002578137,0.40278,2485.8,2485.6,4.51391561]
[1730002578336,0.4417,2485.7,2485.6,4.91672561]
[1730002578543,0.8732,2485.7,2485.6,4.91672561]
[1730002578946,7.04351561,2485.7,2485.0,3.2078]
[1730002579144,7.04351561,2485.7,2485.2,1.30611561]
[1730002579145,1.30611561,2485.5,2485.2,1.30611561]
[1730002579449,1.70895561,2485.5,2485.2,1.70898561]
[1730002580151,0.40285,2485.4,2485.2,1.70898561]
[1730002580340,0.40285,2485.4,2485.2,0.40287]
[1730002580341,0.4165,2485.3,2485.2,0.40287]
[1730002580541,0.8268,2485.3,2485.2,1.70898561]
[1730002584148,0.8268,2485.3,2485.2,0.40287]
[1730002584459,0.8268,2485.3,2485.2,1.70898561]
[1730002584753,0.8268,2485.3,2485.2,1.30611561]
[1730002585144,0.8268,2485.3,2485.2,1.70899561]
[1730002585651,0.8268,2485.3,2485.2,1.30611561]
[1730002585854,1.22966,2485.3,2485.2,1.30611561]
[1730002586152,0.8268,2485.3,2485.2,1.70899561]
[1730002587355,0.8268,2485.3,2485.2,1.30611561]
[1730002588152,0.835,2486.3,2485.2,6.63623122]
[1730002588358,0.835,2486.3,2485.9,0.40275]
[1730002588359,0.4336,2486.1,2485.9,0.40275]
[1730002589053,0.4336,2486.1,2486.0,1.30611561]
[1730002589259,0.83633,2486.1,2486.0,1.30611561]
[1730002590060,0.83633,2486.1,2485.9,1.30611561]
[1730002590262,0.83633,2486.1,2485.8,0.80528]
[1730002590949,0.83633,2486.1,2485.9,0.40277]
[1730002591146,0.83633,2486.1,2485.8,0.80528]
[1730002591560,0.83633,2486.1,2485.9,0.40276]
[1730002591950,0.83633,2486.1,2486.0,0.40275]
[1730002591951,0.4336,2486.1,2486.0,0.40275]
[1730002593749,0.81878,2486.5,2486.2,0.40271]